[Event "Late-Titled-Tuesday-Blitz-March-19-2024"]
[Site "Chess.com"]
[Date "2024.03.19"]
[Round "8"]
[White "KetiTsatsalashvili"]
[Black "Vadim_Galchenko"]
[Result "0-1"]
[WhiteElo "2461"]
[BlackElo "2598"]
[TimeControl "180+1"]
[EndTime "15:27:17 PDT"]
[Termination "Vadim_Galchenko won on time"]

1. d4 {[%clk 0:03:00.9]} 1... d5 {[%clk 0:02:59.7]} 2. Nf3 {[%clk 0:03:01]} 2...
Nc6 {[%clk 0:03:00.2]} 3. Bf4 {[%clk 0:02:53.6]} 3... Bg4 {[%clk 0:02:59.3]} 4.
e3 {[%clk 0:02:52.4]} 4... e6 {[%clk 0:02:58.5]} 5. Be2 {[%clk 0:02:53]} 5...
Nf6 {[%clk 0:02:58.6]} 6. O-O {[%clk 0:02:53.4]} 6... Bd6 {[%clk 0:02:58.1]} 7.
Ne5 {[%clk 0:02:51.5]} 7... Bxe2 {[%clk 0:02:57.6]} 8. Qxe2 {[%clk 0:02:52.4]}
8... O-O {[%clk 0:02:57.9]} 9. Nd2 {[%clk 0:02:44.7]} 9... Bxe5 {[%clk
0:02:52.9]} 10. Bxe5 {[%clk 0:02:42.9]} 10... Nxe5 {[%clk 0:02:52.8]} 11. dxe5
{[%clk 0:02:43.8]} 11... Nd7 {[%clk 0:02:53.1]} 12. f4 {[%clk 0:02:44.1]} 12...
f6 {[%clk 0:02:53.1]} 13. e4 {[%clk 0:02:38.6]} 13... c6 {[%clk 0:02:39.7]} 14.
exf6 {[%clk 0:02:36.5]} 14... Qxf6 {[%clk 0:02:39.7]} 15. e5 {[%clk 0:02:34.7]}
15... Qg6 {[%clk 0:02:38.2]} 16. Nb3 {[%clk 0:02:30.6]} 16... c5 {[%clk
0:02:34.4]} 17. c3 {[%clk 0:02:27.4]} 17... c4 {[%clk 0:02:24.5]} 18. Nd4 {[%clk
0:02:26.6]} 18... Nc5 {[%clk 0:02:25]} 19. b3 {[%clk 0:02:14.5]} 19... cxb3
{[%clk 0:02:18.2]} 20. axb3 {[%clk 0:02:11.4]} 20... Ne4 {[%clk 0:02:03.4]} 21.
c4 {[%clk 0:02:04.8]} 21... Rad8 {[%clk 0:01:39.6]} 22. Rxa7 {[%clk 0:01:39.3]}
22... Rd7 {[%clk 0:01:15]} 23. cxd5 {[%clk 0:01:35.2]} 23... Rxd5 {[%clk
0:01:14.2]} 24. f5 {[%clk 0:00:51.5]} 24... exf5 {[%clk 0:01:07.2]} 25. Qc4
{[%clk 0:00:51.5]} 25... Rd8 {[%clk 0:00:54.7]} 26. Nxf5 {[%clk 0:00:51.5]}
26... Qb6+ {[%clk 0:00:50.8]} 27. Kh1 {[%clk 0:00:31.4]} 27... Nf2+ {[%clk
0:00:43]} 28. Rxf2 {[%clk 0:00:29.1]} 28... Qxf2 {[%clk 0:00:43.9]} 29. Ne7+
{[%clk 0:00:13.2]} 29... Kh8 {[%clk 0:00:42.3]} 30. h3 {[%clk 0:00:10.8]} 30...
Rd1+ {[%clk 0:00:33.8]} 31. Kh2 {[%clk 0:00:10.6]} 31... Qg1+ {[%clk 0:00:31.8]}
32. Kg3 {[%clk 0:00:10.9]} 32... R1d3+ {[%clk 0:00:31.5]} 33. Kf4 {[%clk
0:00:06.7]} 33... Qe3+ {[%clk 0:00:28.8]} 34. Kf5 {[%clk 0:00:06]} 34... Qxa7
{[%clk 0:00:19.8]} 0-1

[Event "Late-Titled-Tuesday-Blitz-March-19-2024"]
[Site "Chess.com"]
[Date "2024.03.19"]
[Round "8"]
[White "bazar-wokzal"]
[Black "wild3000"]
[Result "1-0"]
[WhiteElo "2557"]
[BlackElo "2440"]
[TimeControl "180+1"]
[EndTime "15:27:17 PDT"]
[Termination "bazar-wokzal won on time"]

1. e4 {[%clk 0:03:00.9]} 1... e6 {[%clk 0:02:18.5]} 2. d4 {[%clk 0:02:59.5]}
2... a6 {[%clk 0:02:18.8]} 3. Nc3 {[%clk 0:02:59]} 3... b5 {[%clk 0:02:18.8]} 4.
f4 {[%clk 0:02:56.3]} 4... Bb7 {[%clk 0:02:18]} 5. Bd3 {[%clk 0:02:55.1]} 5...
Nf6 {[%clk 0:02:17.2]} 6. Qe2 {[%clk 0:02:51]} 6... c5 {[%clk 0:02:14.6]} 7. e5
{[%clk 0:02:45.8]} 7... Nd5 {[%clk 0:02:12.8]} 8. Nxd5 {[%clk 0:02:45.3]} 8...
Bxd5 {[%clk 0:02:13.6]} 9. c3 {[%clk 0:02:44.1]} 9... cxd4 {[%clk 0:02:12.5]}
10. cxd4 {[%clk 0:02:44]} 10... Bb4+ {[%clk 0:02:07.9]} 11. Bd2 {[%clk
0:02:43.3]} 11... Qa5 {[%clk 0:02:02.6]} 12. Nf3 {[%clk 0:02:41.1]} 12... Nc6
{[%clk 0:02:00.7]} 13. Be4 {[%clk 0:02:25.4]} 13... Bxe4 {[%clk 0:01:45.5]} 14.
Qxe4 {[%clk 0:02:22.2]} 14... Bxd2+ {[%clk 0:01:40.2]} 15. Nxd2 {[%clk
0:02:22.4]} 15... Qb4 {[%clk 0:01:23.3]} 16. d5 {[%clk 0:02:19.6]} 16... exd5
{[%clk 0:01:01.3]} 17. Qxb4 {[%clk 0:02:15]} 17... Nxb4 {[%clk 0:01:01.2]} 18.
Ke2 {[%clk 0:02:14]} 18... Rc8 {[%clk 0:00:52.3]} 19. Rhc1 {[%clk 0:02:12.2]}
19... Ke7 {[%clk 0:00:47.8]} 20. a3 {[%clk 0:02:06.9]} 20... Nc2 {[%clk
0:00:40.3]} 21. Rab1 {[%clk 0:02:05.5]} 21... Nd4+ {[%clk 0:00:40.2]} 22. Kd3
{[%clk 0:02:05.8]} 22... Ne6 {[%clk 0:00:39.5]} 23. f5 {[%clk 0:01:57.2]} 23...
Nf4+ {[%clk 0:00:36.2]} 24. Ke3 {[%clk 0:01:51.6]} 24... Nxg2+ {[%clk
0:00:33.6]} 25. Kf3 {[%clk 0:01:50.8]} 25... Nh4+ {[%clk 0:00:32.1]} 26. Kg4
{[%clk 0:01:50.9]} 26... Ng2 {[%clk 0:00:20.1]} 27. Nf1 {[%clk 0:01:45]} 27...
f6 {[%clk 0:00:16.5]} 28. Kg3 {[%clk 0:01:39]} 28... fxe5 {[%clk 0:00:15.2]} 29.
Kxg2 {[%clk 0:01:39.3]} 29... Kf6 {[%clk 0:00:15.4]} 30. Ng3 {[%clk 0:01:39.2]}
30... h5 {[%clk 0:00:15.5]} 31. h4 {[%clk 0:01:38.8]} 31... d4 {[%clk
0:00:13.8]} 32. Ne4+ {[%clk 0:01:34.3]} 32... Ke7 {[%clk 0:00:12.1]} 33. Ng3
{[%clk 0:01:24.5]} 33... Kf6 {[%clk 0:00:11.7]} 34. Rxc8 {[%clk 0:01:07]} 34...
Rxc8 {[%clk 0:00:11.3]} 35. Nxh5+ {[%clk 0:01:05.5]} 35... Kxf5 {[%clk
0:00:09.7]} 36. Rf1+ {[%clk 0:01:04.8]} 36... Kg6 {[%clk 0:00:08.4]} 37. Ng3
{[%clk 0:01:03.7]} 37... Rc2+ {[%clk 0:00:04.9]} 38. Rf2 {[%clk 0:01:03.8]}
38... Rxf2+ {[%clk 0:00:04.5]} 39. Kxf2 {[%clk 0:01:04.7]} 39... d5 {[%clk
0:00:04.8]} 40. Kf3 {[%clk 0:01:03.2]} 40... a5 {[%clk 0:00:04.2]} 41. b4 {[%clk
0:01:01.6]} 41... axb4 {[%clk 0:00:02.7]} 42. axb4 {[%clk 0:01:01.4]} 42... Kf6
{[%clk 0:00:03.5]} 43. Kg4 {[%clk 0:00:57.1]} 43... Kg6 {[%clk 0:00:01.9]} 44.
Nf5 {[%clk 0:00:53.5]} 44... Kf6 {[%clk 0:00:01.3]} 45. Nd6 {[%clk 0:00:52.4]}
1-0

[Event "Late-Titled-Tuesday-Blitz-March-19-2024"]
[Site "Chess.com"]
[Date "2024.03.19"]
[Round "8"]
[White "C_K_G"]
[Black "AndresDelgado77"]
[Result "1-0"]
[WhiteElo "2224"]
[BlackElo "2329"]
[TimeControl "180+1"]
[EndTime "15:27:17 PDT"]
[Termination "C_K_G won on time"]

1. e4 {[%clk 0:02:58.3]} 1... e6 {[%clk 0:02:59.6]} 2. Nf3 {[%clk 0:02:57.8]}
2... d5 {[%clk 0:02:59.7]} 3. Nc3 {[%clk 0:02:58.7]} 3... Nf6 {[%clk 0:02:59.3]}
4. e5 {[%clk 0:02:58]} 4... Nfd7 {[%clk 0:02:59.4]} 5. d4 {[%clk 0:02:58.1]}
5... c5 {[%clk 0:03:00]} 6. Bg5 {[%clk 0:02:58.2]} 6... Qa5 {[%clk 0:02:42.8]}
7. dxc5 {[%clk 0:02:53.9]} 7... Bxc5 {[%clk 0:02:31.9]} 8. Qd2 {[%clk
0:02:50.7]} 8... Nc6 {[%clk 0:02:27.2]} 9. Bb5 {[%clk 0:02:48.3]} 9... Bb4
{[%clk 0:02:17]} 10. Bxc6 {[%clk 0:02:41.4]} 10... bxc6 {[%clk 0:02:15.8]} 11.
O-O {[%clk 0:02:41.1]} 11... Ba6 {[%clk 0:02:07.3]} 12. Rfd1 {[%clk 0:02:34.1]}
12... Nc5 {[%clk 0:02:04]} 13. Nd4 {[%clk 0:02:06.7]} 13... Ne4 {[%clk
0:02:00.4]} 14. Nxc6 {[%clk 0:01:19.7]} 14... Qc5 {[%clk 0:00:45.9]} 15. Nxe4
{[%clk 0:01:13.6]} 15... Bxd2 {[%clk 0:00:44.1]} 16. Nxc5 {[%clk 0:01:13.3]}
16... Bxg5 {[%clk 0:00:41.2]} 17. Nxa6 {[%clk 0:01:13.2]} 17... Kd7 {[%clk
0:00:39.4]} 18. Nd4 {[%clk 0:01:09.8]} 18... Rhc8 {[%clk 0:00:39]} 19. c3 {[%clk
0:01:09.3]} 19... Rc4 {[%clk 0:00:37]} 20. Nb4 {[%clk 0:01:03.9]} 20... a5
{[%clk 0:00:33.9]} 21. Nd3 {[%clk 0:01:02.9]} 21... a4 {[%clk 0:00:32.6]} 22. a3
{[%clk 0:00:57]} 22... Rb8 {[%clk 0:00:31.4]} 23. Kf1 {[%clk 0:00:57.5]} 23...
Be7 {[%clk 0:00:28.1]} 24. Ke2 {[%clk 0:00:56.7]} 24... f6 {[%clk 0:00:25.1]}
25. g3 {[%clk 0:00:53.2]} 25... Rb6 {[%clk 0:00:19.7]} 26. f4 {[%clk 0:00:52.6]}
26... Ke8 {[%clk 0:00:16.6]} 27. Rd2 {[%clk 0:00:47.6]} 27... Kf7 {[%clk
0:00:16.2]} 28. Ke3 {[%clk 0:00:46.1]} 28... Rc8 {[%clk 0:00:15.2]} 29. g4
{[%clk 0:00:45]} 29... Rcb8 {[%clk 0:00:13.3]} 30. Re2 {[%clk 0:00:42.1]} 30...
fxe5 {[%clk 0:00:12.9]} 31. Nxe5+ {[%clk 0:00:41.6]} 31... Ke8 {[%clk
0:00:11.2]} 32. Nd3 {[%clk 0:00:41.3]} 32... Bd6 {[%clk 0:00:10.1]} 33. Kf3
{[%clk 0:00:41]} 33... Kd7 {[%clk 0:00:08.4]} 34. Nxe6 {[%clk 0:00:38.8]} 34...
Bxa3 {[%clk 0:00:06]} 35. Rxa3 {[%clk 0:00:37.3]} 35... Rxe6 {[%clk 0:00:05.3]}
36. Rxe6 {[%clk 0:00:37.2]} 36... Kxe6 {[%clk 0:00:06.2]} 37. Rxa4 {[%clk
0:00:37.4]} 1-0

[Event "Late-Titled-Tuesday-Blitz-March-19-2024"]
[Site "Chess.com"]
[Date "2024.03.19"]
[Round "8"]
[White "MightyMike_009"]
[Black "ArmanGhevondyanchess"]
[Result "0-1"]
[WhiteElo "2748"]
[BlackElo "2607"]
[TimeControl "180+1"]
[EndTime "15:27:23 PDT"]
[Termination "ArmanGhevondyanchess won by checkmate"]

1. d4 {[%clk 0:03:00.9]} 1... Nf6 {[%clk 0:02:59.1]} 2. c4 {[%clk 0:03:01.5]}
2... g6 {[%clk 0:02:59.4]} 3. Nc3 {[%clk 0:03:02.1]} 3... d5 {[%clk 0:03:00.2]}
4. cxd5 {[%clk 0:03:02.3]} 4... Nxd5 {[%clk 0:03:01.1]} 5. e4 {[%clk 0:03:03]}
5... Nxc3 {[%clk 0:03:01.8]} 6. bxc3 {[%clk 0:03:03.9]} 6... Bg7 {[%clk
0:03:02.7]} 7. Nf3 {[%clk 0:03:04.7]} 7... O-O {[%clk 0:03:03.6]} 8. h3 {[%clk
0:03:05.4]} 8... c5 {[%clk 0:03:04.1]} 9. Be3 {[%clk 0:03:05.2]} 9... cxd4
{[%clk 0:03:05]} 10. cxd4 {[%clk 0:03:06.1]} 10... b6 {[%clk 0:02:59.8]} 11. Be2
{[%clk 0:02:53.5]} 11... Bb7 {[%clk 0:02:59.9]} 12. e5 {[%clk 0:02:54]} 12...
Nc6 {[%clk 0:02:58.4]} 13. O-O {[%clk 0:02:54]} 13... Rc8 {[%clk 0:02:58.6]} 14.
Rc1 {[%clk 0:02:51.5]} 14... Na5 {[%clk 0:02:52.4]} 15. Qd2 {[%clk 0:02:44.6]}
15... Qd5 {[%clk 0:02:51.2]} 16. Bh6 {[%clk 0:02:37.9]} 16... Rfd8 {[%clk
0:02:42.9]} 17. Bxg7 {[%clk 0:02:29.6]} 17... Kxg7 {[%clk 0:02:43.8]} 18. Rfd1
{[%clk 0:02:29.1]} 18... Nc4 {[%clk 0:02:36.1]} 19. Bxc4 {[%clk 0:02:24.3]}
19... Rxc4 {[%clk 0:02:35.7]} 20. Rxc4 {[%clk 0:02:23.6]} 20... Qxc4 {[%clk
0:02:35.8]} 21. Rc1 {[%clk 0:02:09.6]} 21... Qd5 {[%clk 0:02:35.4]} 22. Rc7
{[%clk 0:01:46.5]} 22... Rd7 {[%clk 0:02:35.5]} 23. Qc2 {[%clk 0:01:46.2]} 23...
Qb5 {[%clk 0:02:18.9]} 24. e6 {[%clk 0:01:21.3]} 24... Rxc7 {[%clk 0:02:00.4]}
25. Qxc7 {[%clk 0:01:16.9]} 25... Bxf3 {[%clk 0:01:53.7]} 26. Qxe7 {[%clk
0:00:49]} 26... Qf5 {[%clk 0:01:48.2]} 27. gxf3 {[%clk 0:00:45.9]} 27... Qxe6
{[%clk 0:01:46.4]} 28. Qh4 {[%clk 0:00:40.5]} 28... Qxa2 {[%clk 0:01:40.2]} 29.
Qe4 {[%clk 0:00:30.8]} 29... Qe6 {[%clk 0:01:36.6]} 30. Qb7 {[%clk 0:00:30.8]}
30... a5 {[%clk 0:01:30.5]} 31. d5 {[%clk 0:00:30.2]} 31... Qe5 {[%clk
0:01:11.6]} 32. Qc6 {[%clk 0:00:29.5]} 32... a4 {[%clk 0:01:07.2]} 33. d6 {[%clk
0:00:24.3]} 33... a3 {[%clk 0:01:06.2]} 34. d7 {[%clk 0:00:21.7]} 34... a2
{[%clk 0:01:05.1]} 35. d8=Q {[%clk 0:00:17.7]} 35... a1=Q+ {[%clk 0:00:47.8]}
36. Kg2 {[%clk 0:00:18.1]} 36... Qee1 {[%clk 0:00:37.4]} 37. Kg3 {[%clk
0:00:18.7]} 37... Qg1+ {[%clk 0:00:34.8]} 38. Kf4 {[%clk 0:00:19.1]} 38... Qh2+
{[%clk 0:00:31.5]} 39. Ke3 {[%clk 0:00:16.4]} 39... Qe1+ {[%clk 0:00:25.2]} 40.
Kd4 {[%clk 0:00:14.2]} 40... Qhe5+ {[%clk 0:00:18.9]} 41. Kc4 {[%clk 0:00:13.6]}
41... Q1c3# {[%clk 0:00:18.2]} 0-1

[Event "Late-Titled-Tuesday-Blitz-March-19-2024"]
[Site "Chess.com"]
[Date "2024.03.19"]
[Round "8"]
[White "DryCounty"]
[Black "MalyDominator"]
[Result "1-0"]
[WhiteElo "2659"]
[BlackElo "2532"]
[TimeControl "180+1"]
[EndTime "15:27:23 PDT"]
[Termination "DryCounty won on time"]

1. e4 {[%clk 0:03:00.9]} 1... c5 {[%clk 0:02:59.4]} 2. Nf3 {[%clk 0:03:00]} 2...
d6 {[%clk 0:03:00]} 3. d4 {[%clk 0:02:59.3]} 3... cxd4 {[%clk 0:03:00.9]} 4.
Nxd4 {[%clk 0:02:58.8]} 4... Nf6 {[%clk 0:03:01.6]} 5. Nc3 {[%clk 0:02:58.7]}
5... Nc6 {[%clk 0:03:02.3]} 6. Be2 {[%clk 0:02:57.8]} 6... e5 {[%clk 0:03:02.2]}
7. Nf3 {[%clk 0:02:58.2]} 7... h6 {[%clk 0:03:02.1]} 8. O-O {[%clk 0:02:58.6]}
8... Be7 {[%clk 0:03:02.8]} 9. Re1 {[%clk 0:02:58.8]} 9... O-O {[%clk
0:03:03.4]} 10. h3 {[%clk 0:02:59.2]} 10... Be6 {[%clk 0:03:03.8]} 11. Bf1
{[%clk 0:02:59.6]} 11... Qd7 {[%clk 0:03:03.5]} 12. Nd5 {[%clk 0:02:58.8]} 12...
Bd8 {[%clk 0:03:01.2]} 13. c4 {[%clk 0:02:55.6]} 13... Nh7 {[%clk 0:03:01.1]}
14. Be3 {[%clk 0:02:53.8]} 14... Ng5 {[%clk 0:03:00.9]} 15. Nxg5 {[%clk
0:02:47.9]} 15... Bxg5 {[%clk 0:02:59.9]} 16. Qh5 {[%clk 0:02:28.7]} 16... Bxe3
{[%clk 0:02:49.2]} 17. Rxe3 {[%clk 0:02:27.5]} 17... Bxd5 {[%clk 0:02:48]} 18.
exd5 {[%clk 0:02:26.3]} 18... Nd4 {[%clk 0:02:48]} 19. Rd1 {[%clk 0:02:22.2]}
19... Qf5 {[%clk 0:02:41.8]} 20. Qxf5 {[%clk 0:02:18.2]} 20... Nxf5 {[%clk
0:02:42.7]} 21. Rb3 {[%clk 0:02:12.3]} 21... b6 {[%clk 0:02:40.9]} 22. Ra3
{[%clk 0:02:12.6]} 22... Nd4 {[%clk 0:02:37.7]} 23. f4 {[%clk 0:02:10.4]} 23...
f6 {[%clk 0:02:33]} 24. b4 {[%clk 0:01:59.5]} 24... g5 {[%clk 0:02:26.6]} 25. g3
{[%clk 0:01:49.8]} 25... Kf7 {[%clk 0:02:23.9]} 26. c5 {[%clk 0:01:40.6]} 26...
bxc5 {[%clk 0:02:14.4]} 27. bxc5 {[%clk 0:01:40.4]} 27... dxc5 {[%clk
0:02:14.7]} 28. fxe5 {[%clk 0:01:34.8]} 28... fxe5 {[%clk 0:02:14.1]} 29. Ra6
{[%clk 0:01:32.8]} 29... Kg7 {[%clk 0:02:08.5]} 30. Bd3 {[%clk 0:01:24.7]} 30...
Rf6 {[%clk 0:01:34.8]} 31. Ra5 {[%clk 0:01:09.2]} 31... Rf3 {[%clk 0:01:23.1]}
32. Kg2 {[%clk 0:01:02.5]} 32... Raf8 {[%clk 0:01:22]} 33. Rxa7+ {[%clk
0:01:01.9]} 33... Kh8 {[%clk 0:01:20.2]} 34. Rd2 {[%clk 0:01:01]} 34... Re3
{[%clk 0:00:47.2]} 35. d6 {[%clk 0:00:45.6]} 35... Rff3 {[%clk 0:00:40.1]} 36.
d7 {[%clk 0:00:38.9]} 36... Rxg3+ {[%clk 0:00:40.2]} 37. Kf1 {[%clk 0:00:37.8]}
37... Rgf3+ {[%clk 0:00:39.2]} 38. Rf2 {[%clk 0:00:36.4]} 38... Ne6 {[%clk
0:00:17.1]} 39. Bc4 {[%clk 0:00:26.3]} 39... Rxf2+ {[%clk 0:00:02.6]} 40. Kxf2
{[%clk 0:00:25.3]} 1-0

[Event "Late-Titled-Tuesday-Blitz-March-19-2024"]
[Site "Chess.com"]
[Date "2024.03.19"]
[Round "8"]
[White "Burgsvik"]
[Black "shirovin"]
[Result "1-0"]
[WhiteElo "2280"]
[BlackElo "2037"]
[TimeControl "180+1"]
[EndTime "15:27:23 PDT"]
[Termination "Burgsvik won on time"]

1. e4 {[%clk 0:03:00.9]} 1... Nf6 {[%clk 0:02:58.5]} 2. Nc3 {[%clk 0:02:59.9]}
2... d5 {[%clk 0:02:54.1]} 3. e5 {[%clk 0:02:59.4]} 3... Nfd7 {[%clk 0:02:53.1]}
4. f4 {[%clk 0:02:58.1]} 4... c5 {[%clk 0:02:36]} 5. Nf3 {[%clk 0:02:55.8]} 5...
d4 {[%clk 0:02:35.5]} 6. Ne4 {[%clk 0:02:53.7]} 6... b6 {[%clk 0:02:31.9]} 7.
Qe2 {[%clk 0:02:52.8]} 7... Bb7 {[%clk 0:02:31.5]} 8. Nd6+ {[%clk 0:02:49.9]}
8... exd6 {[%clk 0:02:28.5]} 9. exd6+ {[%clk 0:02:49.8]} 9... Be7 {[%clk
0:02:28.8]} 10. dxe7 {[%clk 0:02:49.7]} 10... Qxe7 {[%clk 0:02:28.9]} 11. Qxe7+
{[%clk 0:02:49.5]} 11... Kxe7 {[%clk 0:02:28.9]} 12. Be2 {[%clk 0:02:49.3]}
12... Nc6 {[%clk 0:02:23.9]} 13. O-O {[%clk 0:02:46.9]} 13... Nb4 {[%clk
0:02:23.3]} 14. Bd1 {[%clk 0:02:44.7]} 14... Rhe8 {[%clk 0:02:17]} 15. d3 {[%clk
0:02:44.7]} 15... Kf8 {[%clk 0:02:13.7]} 16. a3 {[%clk 0:02:44.2]} 16... Nd5
{[%clk 0:02:12.9]} 17. Ng5 {[%clk 0:02:40.6]} 17... Ne3 {[%clk 0:02:04.8]} 18.
Bxe3 {[%clk 0:02:37.4]} 18... dxe3 {[%clk 0:02:03.7]} 19. Re1 {[%clk 0:02:25.1]}
19... h6 {[%clk 0:02:02.1]} 20. Ne4 {[%clk 0:02:24.8]} 20... Bxe4 {[%clk
0:02:00.6]} 21. dxe4 {[%clk 0:02:24.8]} 21... Rxe4 {[%clk 0:02:01.1]} 22. Bf3
{[%clk 0:02:24.6]} 22... Rae8 {[%clk 0:01:57.5]} 23. Bxe4 {[%clk 0:02:23.7]}
23... Rxe4 {[%clk 0:01:57]} 24. Rad1 {[%clk 0:02:21.7]} 24... Nf6 {[%clk
0:01:56.1]} 25. Rd8+ {[%clk 0:02:20]} 25... Ke7 {[%clk 0:01:55.5]} 26. Ra8
{[%clk 0:02:18.1]} 26... Nd5 {[%clk 0:01:50.2]} 27. Rxa7+ {[%clk 0:02:16.1]}
27... Ke6 {[%clk 0:01:49.2]} 28. g3 {[%clk 0:02:15.6]} 28... Kf5 {[%clk
0:01:31.9]} 29. Rxf7+ {[%clk 0:02:11.1]} 29... Kg4 {[%clk 0:01:31]} 30. Kg2
{[%clk 0:02:10.4]} 30... g5 {[%clk 0:01:29.9]} 31. h3+ {[%clk 0:02:09.7]} 31...
Kh5 {[%clk 0:01:28.7]} 32. fxg5 {[%clk 0:02:06.4]} 32... hxg5 {[%clk 0:01:27.7]}
33. g4+ {[%clk 0:02:04.1]} 33... Kg6 {[%clk 0:01:26.9]} 34. Rf3 {[%clk
0:02:02.8]} 34... Nf4+ {[%clk 0:01:17.2]} 35. Kg3 {[%clk 0:02:01]} 35... e2
{[%clk 0:01:15.3]} 36. Kf2 {[%clk 0:01:48.5]} 36... Rc4 {[%clk 0:01:03.8]} 37.
Rxf4 {[%clk 0:01:43.2]} 37... Rxf4+ {[%clk 0:00:57.4]} 38. Kxe2 {[%clk 0:01:41]}
38... Rf8 {[%clk 0:00:55.9]} 39. Kd2 {[%clk 0:01:40.6]} 39... Rh8 {[%clk
0:00:54.8]} 40. Re3 {[%clk 0:01:40.4]} 40... Rd8+ {[%clk 0:00:50.9]} 41. Kc3
{[%clk 0:01:39.8]} 41... b5 {[%clk 0:00:50.9]} 42. Re5 {[%clk 0:01:32.2]} 42...
Rh8 {[%clk 0:00:47.2]} 43. Rxc5 {[%clk 0:01:29]} 43... Rxh3+ {[%clk 0:00:46.3]}
44. Kb4 {[%clk 0:01:28.7]} 44... Rg3 {[%clk 0:00:45.8]} 45. Rxb5 {[%clk
0:01:28.6]} 45... Rxg4+ {[%clk 0:00:45.7]} 46. c4 {[%clk 0:01:28.7]} 46... Re4
{[%clk 0:00:44.9]} 47. b3 {[%clk 0:01:28.1]} 47... g4 {[%clk 0:00:44.7]} 48. Rb8
{[%clk 0:01:26.9]} 48... Kf5 {[%clk 0:00:42.3]} 49. Rf8+ {[%clk 0:01:25.8]}
49... Kg5 {[%clk 0:00:41.9]} 50. a4 {[%clk 0:01:24]} 50... g3 {[%clk 0:00:39]}
51. a5 {[%clk 0:01:23.8]} 51... Rg4 {[%clk 0:00:37.3]} 52. Rf1 {[%clk
0:01:22.9]} 52... g2 {[%clk 0:00:36.9]} 53. Rg1 {[%clk 0:01:22.9]} 53... Kf4
{[%clk 0:00:37.6]} 54. a6 {[%clk 0:01:22.8]} 54... Kf3 {[%clk 0:00:37.7]} 55. a7
{[%clk 0:01:21.6]} 55... Rg8 {[%clk 0:00:36.9]} 56. Kb5 {[%clk 0:01:21.1]} 56...
Kf2 {[%clk 0:00:36.6]} 57. Rxg2+ {[%clk 0:01:21.3]} 57... Kxg2 {[%clk
0:00:36.6]} 58. c5 {[%clk 0:01:21.5]} 58... Kf3 {[%clk 0:00:36.4]} 59. Kb6
{[%clk 0:01:21.6]} 59... Ke4 {[%clk 0:00:36.2]} 60. b4 {[%clk 0:01:21.8]} 60...
Kd5 {[%clk 0:00:36]} 61. b5 {[%clk 0:01:21.1]} 61... Rf8 {[%clk 0:00:31.8]} 62.
c6 {[%clk 0:01:19.4]} 62... Kc4 {[%clk 0:00:25.5]} 63. c7 {[%clk 0:01:18.7]}
63... Rg8 {[%clk 0:00:23.4]} 64. Kb7 {[%clk 0:01:18.3]} 1-0

[Event "Late-Titled-Tuesday-Blitz-March-19-2024"]
[Site "Chess.com"]
[Date "2024.03.19"]
[Round "8"]
[White "Adar_07"]
[Black "Matrix3x3a"]
[Result "1-0"]
[WhiteElo "2830"]
[BlackElo "2609"]
[TimeControl "180+1"]
[EndTime "15:27:29 PDT"]
[Termination "Adar_07 won by resignation"]

1. e4 {[%clk 0:03:00.9]} 1... c5 {[%clk 0:02:59.9]} 2. Nf3 {[%clk 0:03:00.8]}
2... d6 {[%clk 0:03:00.4]} 3. Bb5+ {[%clk 0:02:59.3]} 3... Nd7 {[%clk 0:03:00]}
4. O-O {[%clk 0:02:59.5]} 4... a6 {[%clk 0:02:59.9]} 5. Bd3 {[%clk 0:02:58.5]}
5... Ngf6 {[%clk 0:02:59.4]} 6. c3 {[%clk 0:02:58.7]} 6... Qc7 {[%clk
0:02:58.6]} 7. Re1 {[%clk 0:02:56.8]} 7... e6 {[%clk 0:02:59.1]} 8. Bc2 {[%clk
0:02:56.3]} 8... Be7 {[%clk 0:02:58.2]} 9. d4 {[%clk 0:02:56.1]} 9... O-O {[%clk
0:02:57.8]} 10. e5 {[%clk 0:02:55]} 10... Nd5 {[%clk 0:02:57.2]} 11. Nbd2 {[%clk
0:02:37.4]} 11... b5 {[%clk 0:02:46.4]} 12. Ne4 {[%clk 0:02:33.2]} 12... cxd4
{[%clk 0:02:45.4]} 13. cxd4 {[%clk 0:02:26.9]} 13... dxe5 {[%clk 0:02:44.7]} 14.
dxe5 {[%clk 0:02:24.1]} 14... Bb7 {[%clk 0:02:43.4]} 15. Bg5 {[%clk 0:01:41.6]}
15... Rac8 {[%clk 0:02:33.4]} 16. Rc1 {[%clk 0:01:24.5]} 16... Nc5 {[%clk
0:01:58.4]} 17. Bb1 {[%clk 0:00:41.4]} 17... h6 {[%clk 0:01:48.4]} 18. Bxe7
{[%clk 0:00:33.8]} 18... Qxe7 {[%clk 0:01:49.3]} 19. Nd6 {[%clk 0:00:34.4]}
19... Rc7 {[%clk 0:01:46.8]} 20. b4 {[%clk 0:00:24.8]} 20... Na4 {[%clk
0:01:34.5]} 21. Rxc7 {[%clk 0:00:20.9]} 21... Qxc7 {[%clk 0:01:31.2]} 22. Qd3
{[%clk 0:00:21.3]} 22... g6 {[%clk 0:01:26.2]} 23. Nh4 {[%clk 0:00:18.9]} 23...
Ne7 {[%clk 0:01:16.7]} 24. Qe3 {[%clk 0:00:10.5]} 24... Qc6 {[%clk 0:01:07.8]}
25. Be4 {[%clk 0:00:09.4]} 25... Nd5 {[%clk 0:01:07.5]} 26. Qxh6 {[%clk
0:00:08.6]} 26... Qc3 {[%clk 0:01:05.9]} 27. Rc1 {[%clk 0:00:07.3]} 27... Qxe5
{[%clk 0:01:03.2]} 28. Nxg6 {[%clk 0:00:05.8]} 28... fxg6 {[%clk 0:01:01.8]} 29.
Bxg6 {[%clk 0:00:04.1]} 29... Nf6 {[%clk 0:00:51.3]} 30. Nxb7 {[%clk 0:00:03.1]}
30... Nc3 {[%clk 0:00:48.1]} 31. Rf1 {[%clk 0:00:01.8]} 31... Ne2+ {[%clk
0:00:45]} 32. Kh1 {[%clk 0:00:01.8]} 32... Nf4 {[%clk 0:00:31.9]} 33. Nc5 {[%clk
0:00:01.9]} 33... Qe2 {[%clk 0:00:19.4]} 34. Rg1 {[%clk 0:00:01.5]} 34... Qg4
{[%clk 0:00:15.8]} 35. Nd7 {[%clk 0:00:01.6]} 35... Qxg6 {[%clk 0:00:15.1]} 36.
Qxf8+ {[%clk 0:00:02]} 36... Kh7 {[%clk 0:00:14.3]} 37. Nxf6+ {[%clk 0:00:02.9]}
37... Qxf6 {[%clk 0:00:13.3]} 38. Qxf6 {[%clk 0:00:03.8]} 38... Ng6 {[%clk
0:00:13.5]} 39. Qf7+ {[%clk 0:00:03.9]} 1-0